fUST/lending_fUST_20240414
["ID","MTS","AMOUNT","RATE_DAILY","PERIOD"]
[322588409,1713090638164,-316.45982358,0.000399,2]
[322588410,1713090638173,-161.27139245,0.000399,9]
[322588411,1713090638181,-171.86244832,0.0003998,2]
[322588412,1713090638191,-3109.42575445,0.0003998,2]
[322588414,1713090638200,-155.24244647,0.00039998,4]
[322588416,1713090638209,-157.42885592,0.00039998,4]
[322588418,1713090638219,-155.0,0.00039998,4]
[322588420,1713090638228,-400.0,0.00039998,2]
[322588422,1713090638238,-155.0,0.00039998,4]
[322588424,1713090638247,-531.29372293,0.00039999,31]
[322588426,1713090638258,-500.0,0.00039999,31]
[322588428,1713090638269,-500.0,0.00039999,31]
[322588430,1713090638279,-386.33719198,0.00039999,31]
[322588432,1713090638289,-44325.69684879,0.0004,5]
[322588434,1713090638298,-225451.408593,0.0004,14]
[322588436,1713090638307,-154.87609912,0.0004,15]
[322588438,1713090638318,-441.74839954,0.0004,2]
[322588440,1713090638329,-10046.34551693,0.0004,2]
[322588442,1713090638340,-1407.60638131,0.0004,4]
[322588444,1713090638350,-1000.0,0.0004,3]
[322588446,1713090638360,-201.67162124,0.0004,2]
[322588448,1713090638370,-316.45982356,0.00040149,2]
[322588450,1713090638380,-203.0300069,0.00040178,2]
[322588452,1713090638390,-316.45982356,0.00040398,2]
[322588454,1713090638400,-202.5598613,0.00040572,2]
[322588456,1713090638410,-316.45982356,0.00040647,2]
[322588458,1713090638420,-157.07652659,0.00040678,2]
[322588460,1713090638431,-376.68542931,0.0004082,31]
[322588462,1713090638440,-500.0,0.0004082,31]
[322588464,1713090638449,-500.0,0.0004082,31]
[322588466,1713090638458,-239.19603286,0.0004082,31]
[322588468,1713090638469,-267.78564331,0.0004082,31]
[322588470,1713090638479,-179.87,0.0004082,2]
[322588472,1713090638490,-179.87,0.0004082,2]
[322588474,1713090638500,-151.0,0.00040821,2]
[322588476,1713090638510,-151.0,0.00040821,2]
[322588478,1713090638524,-151.0,0.00040821,2]
[322588480,1713090638533,-151.0,0.00040821,2]
[322588482,1713090638543,-151.0,0.00040821,2]
[322588484,1713090638554,-154.683341,0.00040821,2]
[322588486,1713090638564,-154.938025,0.00040821,2]
[322588488,1713090638573,-154.683341,0.00040821,2]
[322588490,1713090638583,-151.0,0.00040821,2]
[322588492,1713090638594,-223.700076,0.00040821,2]
[322588494,1713090638604,-223.700076,0.00040821,2]
[322588496,1713090638614,-2322.647777,0.00040821,2]
[322588498,1713090638625,-2322.647777,0.00040821,2]
[322588500,1713090638635,-158.050119,0.00040821,2]
[322588502,1713090638645,-151.0,0.00040821,2]
[322588505,1713090638655,-12318.99,0.00040821,10]
[322588507,1713090638666,-158.050119,0.00040821,2]
[322588509,1713090638676,-12318.99,0.00040821,10]
[322588511,1713090638686,-12318.99,0.00040821,10]
[322588513,1713090638696,-12318.99,0.00040821,10]
[322588514,1713090638706,-12318.99,0.00040821,10]
[322588517,1713090638718,-151.0,0.00040821,2]
[322588518,1713090638729,-12318.99,0.00040821,10]
[322588520,1713090638742,-12318.99,0.00040821,10]
[322588522,1713090638753,-151.0,0.00040821,2]
[322588524,1713090638763,-543.623792,0.00040821,2]
[322588526,1713090638775,-543.623792,0.00040821,2]
[322588528,1713090638786,-176.94,0.00040821,2]
[322588530,1713090638797,-176.94,0.00040821,2]
[322588532,1713090638808,-151.0,0.00040821,2]
[322588533,1713090638818,-3029.129818,0.00040821,2]
[322588534,1713090638827,-1640.85186395,0.00040821,2]
[322588590,1713090640289,-529.87909,0.00040821,2]
[322588592,1713090640300,-553.2,0.00040821,2]
[322588594,1713090640312,-305.19886405,0.00040821,2]
[322588596,1713090640322,-151.0,0.00040821,2]
[322588598,1713090640331,-76.12113595,0.00040821,2]
[322588901,1713090643586,-74.87886405,0.00040821,2]
[322588903,1713090643595,-237.2136,0.00040884,2]
[322588905,1713090643604,-316.45982356,0.00040896,2]
[322588907,1713090643613,-3566.46692045,0.00040896,2]
[322588909,1713090643622,-161.27139238,0.000409,10]
[322588911,1713090643631,-151.0,0.00040995,2]
[322588913,1713090643640,-151.0,0.00040995,2]
[322588915,1713090643650,-151.0,0.00040995,2]
[322588917,1713090643658,-151.0,0.00040995,2]
[322588919,1713090643668,-151.0,0.00040995,2]
[322588921,1713090643678,-151.0,0.00040995,2]
[322588923,1713090643687,-164.763923,0.00040995,2]
[322588925,1713090643696,-151.0,0.00040995,2]
[322588927,1713090643705,-151.0,0.00040995,2]
[322588929,1713090643714,-154.683341,0.00040995,2]
[322588931,1713090643723,-154.683341,0.00040995,2]
[322588933,1713090643733,-154.683341,0.00040995,2]
[322588935,1713090643742,-154.683341,0.00040995,2]
[322588937,1713090643751,-151.0,0.00040995,2]
[322588939,1713090643760,-151.0,0.00040995,2]
[322588940,1713090643769,-223.700076,0.00040995,2]
[322588942,1713090643779,-223.700076,0.00040995,2]
[322588944,1713090643789,-223.700076,0.00040995,2]
[322588947,1713090643800,-223.700076,0.00040995,2]
[322588948,1713090643810,-2322.647777,0.00040995,2]
[322588950,1713090643819,-2322.647777,0.00040995,2]
[322588952,1713090643829,-2322.647777,0.00040995,2]
[322588954,1713090643839,-2322.647777,0.00040995,2]
[322588956,1713090643847,-158.050119,0.00040995,2]
[322588958,1713090643857,-158.050119,0.00040995,2]
[322588960,1713090643868,-151.0,0.00040995,2]
[322588962,1713090643880,-151.0,0.00040995,2]
[322588964,1713090643889,-158.050119,0.00040995,2]
[322588966,1713090643898,-158.050119,0.00040995,2]
[322588968,1713090643908,-151.0,0.00040995,2]
[322588970,1713090643918,-12318.99,0.00040995,10]
[322588972,1713090643927,-12318.99,0.00040995,10]
[322588974,1713090643936,-151.0,0.00040995,2]
[322588976,1713090643946,-12318.99,0.00040995,10]
[322588978,1713090643957,-12318.99,0.00040995,10]
[322588980,1713090643966,-12318.99,0.00040995,10]
[322588982,1713090643976,-151.0,0.00040995,2]
[322588984,1713090643985,-543.623792,0.00040995,2]
[322588986,1713090643994,-543.623792,0.00040995,2]
[322588988,1713090644003,-543.623792,0.00040995,2]
[322588990,1713090644014,-543.623792,0.00040995,2]
[322588992,1713090644024,-176.94,0.00040995,2]
[322588994,1713090644033,-176.94,0.00040995,2]
[322588996,1713090644043,-176.94,0.00040995,2]
[322588998,1713090644053,-176.94,0.00040995,2]
[322589000,1713090644062,-151.0,0.00040995,2]
[322589002,1713090644071,-3029.129818,0.00040995,2]
[322589004,1713090644080,-3029.129818,0.00040995,2]
[322589006,1713090644088,-151.0,0.00040995,2]
[322589008,1713090644097,-151.0,0.00040995,2]
[322589009,1713090644106,-151.0,0.00040995,2]
[322589011,1713090644116,-179839.0016548,0.00040996,2]
[322589014,1713090644126,-151.0,0.00040996,2]
[322589016,1713090644135,-151.0,0.00040996,2]
[322589017,1713090644145,-151.0,0.00040996,2]
[322589020,1713090644155,-151.0,0.00040996,2]
[322589021,1713090644164,-154.683341,0.00040996,2]
[322589023,1713090644174,-154.683341,0.00040996,2]
[322589026,1713090644184,-223.700076,0.00040996,2]
[322589027,1713090644193,-223.700076,0.00040996,2]
[322589029,1713090644203,-2322.647777,0.00040996,2]
[322589031,1713090644212,-2322.647777,0.00040996,2]
[322589033,1713090644222,-158.050119,0.00040996,2]
[322589035,1713090644233,-151.0,0.00040996,2]
[322589037,1713090644243,-158.050119,0.00040996,2]
[322589039,1713090644253,-151.0,0.00040996,2]
[322589041,1713090644262,-151.0,0.00040996,2]
[322589044,1713090644272,-543.623792,0.00040996,2]
[322589045,1713090644282,-543.623792,0.00040996,2]
[322589047,1713090644292,-176.94,0.00040996,2]
[322589049,1713090644301,-176.94,0.00040996,2]
[322589051,1713090644311,-151.0,0.00040996,2]
[322589053,1713090644320,-3029.129818,0.00040996,2]
[322589055,1713090644330,-3029.129818,0.00040996,2]
[322589057,1713090644339,-151.0,0.00040996,2]
[322589059,1713090644348,-306.80760097,0.00040999,4]
[322589061,1713090644357,-151.0,0.00040999,2]
[322589063,1713090644367,-151.0,0.00040999,2]
[322589065,1713090644377,-151.0,0.00040999,2]
[322589067,1713090644387,-217.72762176,0.00041,2]
[322589069,1713090644398,-177.25,0.00041,17]
[322589071,1713090644409,-948.42624107,0.00041,4]
[322589073,1713090644418,-1000.0,0.00041,60]
[322589075,1713090644428,-1000.0,0.00041,30]
[322589077,1713090644438,-1061.90418992,0.00041,4]
[322589079,1713090644448,-2500.0,0.00041,30]
[322589081,1713090644458,-9000.0,0.00041,14]
[322589083,1713090644468,-5463.602853,0.00041,2]
[322589085,1713090644479,-5463.602853,0.00041,2]
[322589087,1713090644488,-151.0,0.00041,2]
[322589089,1713090644499,-151.0,0.00041,2]
[322589091,1713090644508,-150.0,0.00041,2]
[322589093,1713090644518,-151.0,0.00041,2]
[322589095,1713090644528,-151.0,0.00041,2]
[322589097,1713090644539,-154.683341,0.00041,2]
[322589099,1713090644548,-154.683341,0.00041,2]
[322589101,1713090644558,-223.700076,0.00041,2]
[322589103,1713090644566,-223.700076,0.00041,2]
[322589105,1713090644576,-2322.647777,0.00041,2]
[322589107,1713090644586,-2322.647777,0.00041,2]
[322589109,1713090644597,-1788.819534,0.00041,34]
[322589111,1713090644606,-158.050119,0.00041,2]
[322589113,1713090644615,-151.0,0.00041,2]
[322589115,1713090644625,-158.050119,0.00041,2]
[322589117,1713090644635,-151.0,0.00041,2]
[322589119,1713090644645,-151.0,0.00041,2]
[322589120,1713090644655,-543.623792,0.00041,2]
[322589122,1713090644667,-543.623792,0.00041,2]
[322589124,1713090644678,-176.94,0.00041,2]
[322589127,1713090644689,-176.94,0.00041,2]
[322589128,1713090644699,-153.915908,0.00041,2]
[322589131,1713090644711,-3029.129818,0.00041,2]
[322589132,1713090644721,-3029.129818,0.00041,2]
[322589134,1713090644732,-151.0,0.00041,2]
[322589136,1713090644743,-151.0,0.00041,2]
[322589139,1713090644754,-151.0,0.0004101,2]
[322589141,1713090644765,-151.0,0.0004101,2]
[322589143,1713090644777,-2500.0,0.0004101,30]
[322589145,1713090644789,-151.0,0.0004101,2]
[322589146,1713090644800,-208.717456,0.0004101,2]
[322589149,1713090644810,-3029.129818,0.0004101,2]
[322589151,1713090644820,-3029.129818,0.0004101,2]
[322589152,1713090644833,-151.0,0.00041019,2]
[322589154,1713090644842,-223.700076,0.00041019,2]
[322589157,1713090644853,-223.700076,0.00041019,2]
[322589159,1713090644863,-2322.647777,0.00041019,2]
[322589160,1713090644873,-2322.647777,0.00041019,2]
[322589162,1713090644885,-158.050119,0.00041019,2]
[322589164,1713090644896,-151.0,0.00041019,2]
[322589166,1713090644906,-158.050119,0.00041019,2]
[322589168,1713090644917,-151.0,0.00041019,2]
[322589170,1713090644928,-543.623792,0.00041019,2]
[322589172,1713090644939,-543.623792,0.00041019,2]
[322589174,1713090644948,-176.94,0.00041019,2]
[322589176,1713090644960,-176.94,0.00041019,2]
[322589178,1713090644970,-2500.0,0.0004102,30]
[322589180,1713090644980,-151.0,0.0004102,2]
[322589182,1713090644991,-164.140879,0.0004102,2]
[322589184,1713090645001,-151.0,0.0004102,2]
[322589186,1713090645012,-154.683341,0.0004102,2]
[322589189,1713090645023,-154.683341,0.0004102,2]
[322589190,1713090645037,-205.0,0.0004103,22]
[322589192,1713090645048,-2500.0,0.0004103,30]
[322589194,1713090645058,-2500.0,0.0004104,31]
[322589197,1713090645068,-2500.0,0.0004105,31]
[322589198,1713090645078,-8144.96473121,0.00041052,15]
[322589200,1713090645087,-3029.129818,0.00041052,2]
[322589202,1713090645097,-3029.129818,0.00041052,2]
[322589205,1713090645108,-12318.99,0.00041059,10]
[322589207,1713090645119,-2500.0,0.0004106,31]
[322589208,1713090645130,-5463.602853,0.0004106,2]
[322589210,1713090645140,-5463.602853,0.0004106,2]
[322589212,1713090645150,-151.0,0.0004106,2]
[322589214,1713090645160,-151.0,0.0004106,2]
[322589216,1713090645172,-151.0,0.0004106,2]
[322589218,1713090645183,-154.683341,0.0004106,2]
[322589220,1713090645193,-154.683341,0.0004106,2]
[322589223,1713090645204,-223.700076,0.0004106,2]
[322589224,1713090645215,-223.700076,0.0004106,2]
[322589227,1713090645226,-2322.647777,0.0004106,2]
[322589228,1713090645236,-2322.647777,0.0004106,2]
[322589230,1713090645246,-158.050119,0.0004106,2]
[322589232,1713090645256,-151.0,0.0004106,2]
[322589234,1713090645266,-158.050119,0.0004106,2]
[322589236,1713090645281,-151.0,0.0004106,2]
[322589238,1713090645291,-543.623792,0.0004106,2]
[322589241,1713090645300,-543.623792,0.0004106,2]
[322589243,1713090645311,-176.94,0.0004106,2]
[322589245,1713090645320,-176.94,0.0004106,2]
[322589247,1713090645329,-3029.129818,0.0004106,2]
[322589248,1713090645339,-3029.129818,0.0004106,2]
[322589250,1713090645348,-932.0,0.00041066,35]
[322589252,1713090645358,-150.5,0.00041066,35]
[322589254,1713090645367,-151.0,0.0004107,2]
[322589256,1713090645376,-151.0,0.0004107,2]
[322589258,1713090645385,-2500.0,0.0004107,31]
[322589260,1713090645395,-932.0,0.00041076,35]
[322589262,1713090645404,-150.5,0.00041076,35]
[322589264,1713090645413,-2500.0,0.0004108,31]
[322589266,1713090645422,-299.75,0.00041086,35]
[322589268,1713090645431,-150.5,0.00041086,35]
[322589270,1713090645440,-932.0,0.00041086,35]
[322589272,1713090645449,-280.269146,0.00041086,2]
[322589274,1713090645458,-223.700076,0.00041086,2]
[322589276,1713090645467,-223.700076,0.00041086,2]
[322589278,1713090645476,-2322.647777,0.00041086,2]
[322589280,1713090645485,-2322.647777,0.00041086,2]
[322589282,1713090645494,-158.050119,0.00041086,2]
[322589284,1713090645502,-151.0,0.00041086,2]
[322589285,1713090645512,-158.050119,0.00041086,2]
[322589286,1713090645521,-288.200183,0.00041086,2]
[322589287,1713090645533,-543.623792,0.00041086,2]
[322589288,1713090645542,-543.623792,0.00041086,2]
[322589289,1713090645551,-176.94,0.00041086,2]
[322589290,1713090645560,-176.94,0.00041086,2]
[322589292,1713090645569,-683.37413683,0.00041088,2]
[322589293,1713090645579,-2500.0,0.0004109,31]
[322589294,1713090645588,-5463.602853,0.0004109,2]
[322589295,1713090645598,-5463.602853,0.0004109,2]
[322589297,1713090645607,-151.0,0.0004109,2]
[322589299,1713090645616,-151.0,0.0004109,2]
[322589301,1713090645625,-154.683341,0.0004109,2]
[322589303,1713090645634,-154.683341,0.0004109,2]
[322589305,1713090645644,-3029.129818,0.0004109,2]
[322589307,1713090645653,-3029.129818,0.0004109,2]
[322589309,1713090645662,-402.67637636,0.00041093,4]
[322589311,1713090645671,-702.6039036,0.00041093,4]
[322589313,1713090645680,-924.34084722,0.00041093,4]
[322589316,1713090645689,-314.60513727,0.00041093,4]
[322589334,1713090645808,-1487.19821628,0.00041093,4]
[322589337,1713090645817,-193.14313214,0.00041093,4]
[322589340,1713090645827,-207.39373908,0.00041093,4]
[322589343,1713090645837,-525.07637197,0.00041093,4]
[322589346,1713090645846,-936.73565596,0.00041093,4]
[322589349,1713090645855,-211.55365242,0.00041093,4]
[322589352,1713090645865,-1854.33075151,0.00041093,4]
[322589355,1713090645874,-500.0,0.00041093,2]
[322589358,1713090645886,-151.0,0.00041093,2]
[322589361,1713090645895,-266.821808,0.00041093,2]
[322589364,1713090645904,-151.0,0.00041093,2]
[322589367,1713090645914,-151.0,0.00041093,2]
[322589370,1713090645923,-151.0,0.00041093,2]
[322589373,1713090645932,-154.683341,0.00041093,2]
[322589376,1713090645942,-154.683341,0.00041093,2]
[322589379,1713090645951,-223.700076,0.00041093,2]
[322589382,1713090645962,-223.700076,0.00041093,2]
[322589385,1713090645971,-2322.647777,0.00041093,2]
[322589388,1713090645981,-2322.647777,0.00041093,2]
[322589391,1713090645990,-158.050119,0.00041093,2]
[322589394,1713090645999,-151.0,0.00041093,2]
[322589397,1713090646008,-158.050119,0.00041093,2]
[322589400,1713090646017,-543.623792,0.00041093,2]
[322589403,1713090646028,-543.623792,0.00041093,2]
[322589406,1713090646037,-176.94,0.00041093,2]
[322589409,1713090646046,-176.94,0.00041093,2]
[322589412,1713090646055,-3029.129818,0.00041093,2]
[322589414,1713090646064,-3029.129818,0.00041093,2]
[322589418,1713090646073,-978.14948833,0.00041094,4]
[322589420,1713090646083,-163.27459215,0.00041094,4]
[322589422,1713090646092,-150.0,0.00041094,2]
[322589424,1713090646101,-151.0,0.00041094,2]
[322589426,1713090646110,-151.0,0.00041094,2]
[322589428,1713090646120,-151.0,0.00041094,2]
[322589430,1713090646129,-151.0,0.00041094,2]
[322589432,1713090646138,-151.0,0.00041094,2]
[322589434,1713090646147,-151.0,0.00041094,2]
[322589436,1713090646156,-169.539945,0.00041094,2]
[322589438,1713090646165,-5463.602853,0.00041094,2]
[322589440,1713090646174,-5463.602853,0.00041094,2]
[322589442,1713090646183,-5463.602853,0.00041094,2]
[322589444,1713090646191,-5463.602853,0.00041094,2]
[322589446,1713090646200,-5463.602853,0.00041094,2]
[322589448,1713090646213,-5463.602853,0.00041094,2]
[322589450,1713090646222,-5463.602853,0.00041094,2]
[322589452,1713090646232,-5463.602853,0.00041094,2]
[322589454,1713090646242,-5463.602853,0.00041094,2]
[322589456,1713090646251,-5463.602853,0.00041094,2]
[322589458,1713090646260,-5463.602853,0.00041094,2]
[322589460,1713090646270,-5463.602853,0.00041094,2]
[322589462,1713090646281,-5463.602853,0.00041094,2]
[322589464,1713090646291,-5463.602846,0.00041094,2]
[322589466,1713090646300,-543.33670428,0.00041094,31]
[322589468,1713090646309,-151.0,0.00041094,2]
[322589470,1713090646319,-154.683341,0.00041094,2]
[322589472,1713090646329,-154.683333,0.00041094,2]
[322589474,1713090646338,-223.700076,0.00041094,2]
[322589476,1713090646347,-223.70007,0.00041094,2]
[322589478,1713090646357,-2322.647777,0.00041094,2]
[322589480,1713090646367,-2322.64778,0.00041094,2]
[322589482,1713090646377,-158.050119,0.00041094,2]
[322589484,1713090646388,-151.0,0.00041094,2]
[322589486,1713090646398,-12318.99,0.00041094,10]
[322589488,1713090646408,-12318.99,0.00041094,10]
[322589490,1713090646418,-158.050126,0.00041094,2]
[322589492,1713090646428,-12318.99,0.00041094,10]
[322589494,1713090646438,-12318.99,0.00041094,10]
[322589496,1713090646448,-12318.99,0.00041094,10]
[322589498,1713090646458,-12318.99,0.00041094,10]
[322589500,1713090646468,-12318.99,0.00041094,10]
[322589502,1713090646477,-12318.99,0.00041094,10]
[322589504,1713090646487,-12318.99,0.00041094,10]
[322589506,1713090646497,-12318.99,0.00041094,10]
[322589508,1713090646507,-12319.01918834,0.00041094,10]
[322589510,1713090646518,-543.623792,0.00041094,2]
[322589512,1713090646529,-543.623794,0.00041094,2]
[322589514,1713090646539,-176.94,0.00041094,2]
[322589516,1713090646548,-176.94,0.00041094,2]
[322589518,1713090646558,-3029.129818,0.00041094,2]
[322589520,1713090646567,-3029.129812,0.00041094,2]
[322589522,1713090646577,-501.3895494,0.00041095,7]
[322589524,1713090646586,-500.0,0.00041095,7]
[322589526,1713090646596,-500.0,0.00041095,7]
[322589528,1713090646606,-286.72815159,0.00041095,7]
[322589530,1713090646616,-500.0,0.00041095,7]
[322589532,1713090646626,-500.0,0.00041095,7]
[322589534,1713090646636,-382.88053639,0.00041095,7]
[322589536,1713090646647,-500.0,0.00041095,7]
[322589538,1713090646656,-500.0,0.00041095,7]
[322589540,1713090646667,-500.0,0.00041095,7]
[322589542,1713090646676,-524.9419037,0.00041095,7]
[322589544,1713090646687,-500.0,0.00041095,7]
[322589546,1713090646697,-500.0,0.00041095,7]
[322589548,1713090646706,-500.0,0.00041095,7]
[322589550,1713090646715,-500.0,0.00041095,7]
[322589552,1713090646724,-500.0,0.00041095,7]
[322589554,1713090646733,-500.0,0.00041095,7]
[322589556,1713090646744,-500.0,0.00041095,7]
[322589558,1713090646754,-500.0,0.00041095,7]
[322589560,1713090646763,-293.37768862,0.00041095,7]
[322589562,1713090646773,-500.0,0.00041095,7]
[322589564,1713090646784,-500.0,0.00041095,7]
[322589565,1713090646792,-500.0,0.00041095,7]
[322589567,1713090646803,-510.31776424,0.00041095,7]
[322589570,1713090646813,-200.5177822,0.00041095,7]
[322589572,1713090646823,-500.0,0.00041095,7]
[322589573,1713090646833,-500.0,0.00041095,7]
[322589576,1713090646844,-500.0,0.00041095,7]
[322589578,1713090646854,-500.0,0.00041095,7]
[322589579,1713090646863,-500.0,0.00041095,7]
[322589581,1713090646873,-500.0,0.00041095,7]
[322589583,1713090646885,-500.0,0.00041095,7]
[322589586,1713090646894,-516.16997207,0.00041095,7]
[322589588,1713090646903,-500.0,0.00041095,7]
[322589589,1713090646913,-500.0,0.00041095,7]
[322589591,1713090646924,-500.0,0.00041095,7]
[322589594,1713090646933,-500.0,0.00041095,7]
[322589595,1713090646942,-500.0,0.00041095,7]
[322589597,1713090646951,-500.0,0.00041095,7]
[322589599,1713090646961,-500.0,0.00041095,7]
[322589601,1713090646970,-354.82964883,0.00041095,7]
[322589603,1713090646979,-500.0,0.00041095,7]
[322589606,1713090646990,-546.939206,0.00041095,7]
[322589608,1713090647002,-500.0,0.00041095,7]
[322589610,1713090647015,-500.0,0.00041095,7]
[322589613,1713090647028,-500.0,0.00041095,7]
[322589615,1713090647039,-500.0,0.00041095,7]
[322589617,1713090647049,-500.0,0.00041095,7]
[322589619,1713090647060,-500.0,0.00041095,7]
[322589622,1713090647073,-500.0,0.00041095,7]
[322589624,1713090647084,-500.0,0.00041095,7]
[322589626,1713090647097,-392.118485,0.00041095,7]
[322589628,1713090647109,-500.0,0.00041095,7]
[322589631,1713090647120,-500.0,0.00041095,7]
[322589633,1713090647133,-500.0,0.00041095,7]
[322589635,1713090647143,-585.74559228,0.00041095,7]
[322589637,1713090647154,-595.2971373,0.00041095,7]
[322589640,1713090647166,-500.0,0.00041095,7]
[322589642,1713090647177,-500.0,0.00041095,7]
[322589644,1713090647189,-500.0,0.00041095,7]
[322589646,1713090647199,-500.0,0.00041095,7]
[322589649,1713090647211,-500.0,0.00041095,7]
[322589651,1713090647224,-500.0,0.00041095,7]
[322589653,1713090647236,-500.0,0.00041095,7]
[322589655,1713090647247,-500.0,0.00041095,7]
[322589657,1713090647258,-500.0,0.00041095,7]
[322589660,1713090647272,-500.0,0.00041095,7]
[322589662,1713090647285,-500.0,0.00041095,7]
[322589664,1713090647298,-500.0,0.00041095,7]
[322589667,1713090647310,-500.0,0.00041095,7]
[322589669,1713090647322,-500.0,0.00041095,7]
[322589671,1713090647332,-500.0,0.00041095,7]
[322589673,1713090647346,-500.0,0.00041095,7]
[322589676,1713090647359,-500.0,0.00041095,7]
[322589678,1713090647371,-445.13883526,0.00041095,7]
[322589680,1713090647385,-500.0,0.00041095,7]
[322589682,1713090647398,-500.0,0.00041095,7]
[322589685,1713090647411,-500.0,0.00041095,7]
[322589687,1713090647423,-500.0,0.00041095,7]
[322589689,1713090647438,-500.0,0.00041095,7]
[322589691,1713090647448,-511.37975332,0.00041095,7]
[322589693,1713090647459,-500.0,0.00041095,7]
[322589695,1713090647470,-501.16674857,0.00041095,7]
[322589698,1713090647481,-615.5,0.00041095,7]
[322589700,1713090647493,-615.5,0.00041095,7]
[322589702,1713090647508,-615.5,0.00041095,7]
[322589704,1713090647520,-615.5,0.00041095,7]
[322589706,1713090647532,-615.5,0.00041095,7]
[322589708,1713090647543,-615.5,0.00041095,7]
[322589711,1713090647555,-615.5,0.00041095,7]
[322589713,1713090647566,-615.5,0.00041095,7]
[322589715,1713090647578,-615.5,0.00041095,7]
[322589717,1713090647590,-615.5,0.00041095,7]
[322589719,1713090647601,-615.5,0.00041095,7]
[322589721,1713090647613,-615.5,0.00041095,7]
[322589724,1713090647624,-615.5,0.00041095,7]
[322589726,1713090647635,-615.5,0.00041095,7]
[322589728,1713090647647,-500.0,0.00041095,7]
[322589730,1713090647658,-500.0,0.00041095,7]
[322589732,1713090647670,-500.0,0.00041095,7]
[322589734,1713090647682,-500.0,0.00041095,7]
[322589736,1713090647693,-500.0,0.00041095,7]
[322589738,1713090647705,-500.0,0.00041095,7]
[322589741,1713090647716,-500.0,0.00041095,7]
[322589743,1713090647726,-500.0,0.00041095,7]
[322589745,1713090647737,-500.0,0.00041095,7]
[322589747,1713090647749,-500.0,0.00041095,7]
[322589749,1713090647759,-500.0,0.00041095,7]
[322589751,1713090647773,-500.0,0.00041095,7]
[322589754,1713090647786,-506.323938,0.00041095,7]
[322589756,1713090647797,-500.0,0.00041095,7]
[322589758,1713090647808,-500.0,0.00041095,7]
[322589760,1713090647819,-500.0,0.00041095,7]
[322589762,1713090647830,-500.0,0.00041095,7]
[322589764,1713090647841,-212.67886994,0.00041095,7]
[322589766,1713090647853,-500.0,0.00041095,7]
[322589769,1713090647864,-500.0,0.00041095,7]
[322589771,1713090647876,-310.11710721,0.00041095,7]
[322589773,1713090647891,-500.0,0.00041095,7]
[322589775,1713090647902,-500.0,0.00041095,7]
[322589777,1713090647913,-500.0,0.00041095,7]
[322589779,1713090647926,-500.0,0.00041095,7]
[322589781,1713090647939,-500.0,0.00041095,7]
[322589783,1713090647951,-500.0,0.00041095,7]
[322589786,1713090647964,-500.0,0.00041095,7]
[322589788,1713090647977,-507.81366434,0.00041095,7]
[322589789,1713090647989,-500.0,0.00041095,7]
[322589791,1713090648001,-500.0,0.00041095,7]
[322589793,1713090648012,-500.0,0.00041095,7]
[322589795,1713090648024,-500.0,0.00041095,7]
[322589798,1713090648036,-500.0,0.00041095,7]
[322589800,1713090648047,-500.0,0.00041095,7]
[322589802,1713090648058,-500.0,0.00041095,7]
[322589804,1713090648068,-296.47522213,0.00041095,7]
[322589806,1713090648079,-500.0,0.00041095,7]